fUST/lending_fUST_20240515
["ID","MTS","AMOUNT","RATE_DAILY","PERIOD"]
[327077019,1715787045441,-35578.87366406,0.000198,2]
[327077048,1715787048628,-10503.99952427,0.00018088,2]
[327077050,1715787048638,-733.59184254,0.00018944,2]
[327077060,1715787048779,-733.59184254,0.00019422,2]
[327077061,1715787048824,-14777.12633594,0.000198,2]
[327077062,1715787048833,-2000.0,0.000199,2]
[327077063,1715787048843,-1564.87365674,0.0002,2]
[327077064,1715787048853,-47127.80473529,0.0002,2]
[327077065,1715787048862,-279.60323409,0.0002,2]
[327077066,1715787048872,-499.95393407,0.0002,2]
[327077067,1715787048882,-67994.83298697,0.0002,2]
[327077068,1715787048891,-25660.85470454,0.0002,2]
[327077069,1715787048900,-500.0,0.0002,2]
[327077070,1715787048910,-165.06476291,0.0002,2]
[327077071,1715787048919,-8490.17173738,0.0002,2]
[327077072,1715787048929,-294.7,0.00020125,2]
[327077073,1715787048939,-294.7,0.00020519,2]
[327077074,1715787048947,-856.73190001,0.00020565,2]
[327077075,1715787048957,-161.31468235,0.00020724,2]
[327077076,1715787048967,-826.87187996,0.000209,2]
[327077077,1715787048978,-294.7,0.00020913,2]
[327077078,1715787048989,-3974.71033268,0.00021,2]
[327077079,1715787048998,-4259.53352327,0.00021,2]
[327077080,1715787049008,-620.06193677,0.00021068,2]
[327077081,1715787049017,-203.0,0.0002123,2]
[327077082,1715787049027,-423.14904865,0.00021233,2]
[327077083,1715787049036,-2744.93316216,0.0002125,2]
[327077084,1715787049045,-294.7,0.00021307,2]
[327077085,1715787049055,-292.41176503,0.00021409,2]
[327077086,1715787049069,-614.5,0.00021486,2]
[327077087,1715787049079,-281.0,0.000217,2]
[327077088,1715787049087,-294.7,0.00021701,2]
[327077089,1715787049097,-2462.08446772,0.00021815,2]
[327077090,1715787049107,-154.79876161,0.00021815,2]
[327077091,1715787049116,-288.61000028,0.00021815,2]
[327077092,1715787049125,-155.15087555,0.00021815,2]
[327077093,1715787049134,-1662.20388901,0.00021815,2]
[327077094,1715787049143,-203.69230885,0.00021815,2]
[327077095,1715787049154,-172.6156446,0.00021815,2]
[327077096,1715787049163,-1895.81355421,0.00021815,2]
[327077097,1715787049172,-392.273216,0.00021817,2]
[327077098,1715787049181,-392.273216,0.00021817,2]
[327077099,1715787049190,-151.0,0.00021817,2]
[327077100,1715787049200,-151.0,0.00021817,2]
[327077101,1715787049210,-151.0,0.00021817,2]
[327077102,1715787049220,-255.488296,0.00021817,2]
[327077103,1715787049230,-255.488296,0.00021817,2]
[327077104,1715787049242,-151.0,0.00021817,2]
[327077105,1715787049252,-151.0,0.00021817,2]
[327077106,1715787049261,-573.913955,0.00021817,2]
[327077107,1715787049270,-573.913955,0.00021817,2]
[327077108,1715787049279,-324.602906,0.00021817,2]
[327077109,1715787049288,-324.602906,0.00021817,2]
[327077110,1715787049296,-244.73265,0.00021817,2]
[327077111,1715787049305,-244.73265,0.00021817,2]
[327077112,1715787049314,-151.0,0.00021817,2]
[327077113,1715787049325,-601.046009,0.00021817,2]
[327077114,1715787049334,-601.046009,0.00021817,2]
[327077115,1715787049343,-856.73190001,0.00021857,2]
[327077116,1715787049353,-154.87609912,0.00021913,2]
[327077117,1715787049364,-154.81422293,0.00021913,2]
[327077118,1715787049373,-216.24923924,0.00021913,2]
[327077119,1715787049384,-265.58475105,0.00021913,7]
[327077120,1715787049393,-155.53005177,0.00021914,2]
[327077121,1715787049403,-300.10764831,0.00021915,2]
[327077122,1715787049413,-392.273216,0.00021915,2]
[327077123,1715787049422,-392.273216,0.00021915,2]
[327077124,1715787049432,-214.23357896,0.00021916,2]
[327077125,1715787049441,-2148.99772551,0.00021917,3]
[327077126,1715787049451,-154.82968734,0.00021917,2]
[327077127,1715787049462,-500.0,0.00021917,2]
[327077128,1715787049471,-500.0,0.00021917,2]
[327077129,1715787049484,-500.0,0.00021917,2]
[327077130,1715787049493,-500.0,0.00021917,2]
[327077131,1715787049504,-500.0,0.00021917,2]
[327077132,1715787049513,-476.22105441,0.00021917,2]
[327077133,1715787049523,-500.0,0.00021917,2]
[327077134,1715787049532,-500.0,0.00021917,2]
[327077135,1715787049541,-556.33,0.00021917,2]
[327077136,1715787049550,-500.0,0.00021917,2]
[327077137,1715787049560,-500.0,0.00021917,2]
[327077138,1715787049569,-500.0,0.00021917,2]
[327077139,1715787049578,-500.0,0.00021917,2]
[327077140,1715787049588,-500.0,0.00021917,2]
[327077141,1715787049598,-500.0,0.00021917,2]
[327077142,1715787049607,-1000.0,0.00021917,2]
[327077143,1715787049617,-1177.45,0.00021917,2]
[327077144,1715787049626,-1000.0,0.00021917,2]
[327077145,1715787049636,-500.0,0.00021917,2]
[327077146,1715787049645,-500.0,0.00021917,2]
[327077147,1715787049654,-500.0,0.00021917,2]
[327077148,1715787049664,-500.0,0.00021917,2]
[327077149,1715787049673,-500.0,0.00021917,2]
[327077150,1715787049683,-500.0,0.00021917,2]
[327077151,1715787049692,-500.0,0.00021917,2]
[327077152,1715787049702,-423.74044418,0.00021917,2]
[327077153,1715787049712,-477.24842318,0.00021917,2]
[327077154,1715787049722,-500.0,0.00021917,2]
[327077155,1715787049733,-500.0,0.00021917,2]
[327077156,1715787049743,-1988.98,0.00021917,2]
[327077157,1715787049752,-300.0,0.00021917,2]
[327077158,1715787049762,-500.0,0.00021917,2]
[327077159,1715787049772,-500.0,0.00021917,2]
[327077160,1715787049782,-500.0,0.00021917,2]
[327077161,1715787049792,-500.0,0.00021917,2]
[327077162,1715787049802,-500.0,0.00021917,2]
[327077163,1715787049811,-153.48383869,0.00021917,2]
[327077164,1715787049820,-640.48594703,0.00021917,2]
[327077165,1715787049830,-987.6,0.00021917,2]
[327077166,1715787049840,-500.0,0.00021917,2]
[327077167,1715787049851,-397.81282009,0.00021917,2]
[327077168,1715787049861,-500.0,0.00021917,2]
[327077169,1715787049871,-500.0,0.00021917,2]
[327077170,1715787049881,-500.0,0.00021917,2]
[327077171,1715787049892,-985.95,0.00021917,2]
[327077172,1715787049902,-500.0,0.00021917,2]
[327077173,1715787049911,-500.0,0.00021917,2]
[327077174,1715787049920,-500.0,0.00021917,2]
[327077175,1715787049931,-500.0,0.00021917,2]
[327077176,1715787049941,-621.12,0.00021917,2]
[327077177,1715787049950,-500.0,0.00021917,2]
[327077178,1715787049959,-500.0,0.00021917,2]
[327077179,1715787049970,-707.01,0.00021917,2]
[327077180,1715787049979,-500.0,0.00021917,2]
[327077181,1715787049989,-579.11,0.00021917,2]
[327077182,1715787049998,-500.0,0.00021917,2]
[327077183,1715787050007,-500.0,0.00021917,2]
[327077184,1715787050016,-500.0,0.00021917,2]
[327077185,1715787050026,-2148.14,0.00021917,2]
[327077186,1715787050036,-500.0,0.00021917,2]
[327077187,1715787050045,-500.0,0.00021917,2]
[327077188,1715787050055,-500.0,0.00021917,2]
[327077189,1715787050065,-500.0,0.00021917,2]
[327077190,1715787050077,-720.8,0.00021917,2]
[327077191,1715787050087,-500.0,0.00021917,2]
[327077192,1715787050096,-500.0,0.00021917,2]
[327077193,1715787050106,-500.0,0.00021917,2]
[327077194,1715787050116,-500.0,0.00021917,2]
[327077195,1715787050125,-649.22,0.00021917,2]
[327077196,1715787050134,-539.59770723,0.00021917,2]
[327077197,1715787050146,-560.66,0.00021917,2]
[327077198,1715787050155,-500.0,0.00021917,2]
[327077199,1715787050164,-500.0,0.00021917,2]
[327077200,1715787050173,-500.0,0.00021917,2]
[327077201,1715787050183,-500.0,0.00021917,2]
[327077202,1715787050192,-500.0,0.00021917,2]
[327077203,1715787050201,-500.0,0.00021917,2]
[327077204,1715787050210,-500.0,0.00021917,2]
[327077205,1715787050219,-500.0,0.00021917,2]
[327077206,1715787050229,-151.0,0.00021917,2]
[327077207,1715787050240,-500.0,0.00021917,2]
[327077208,1715787050248,-500.0,0.00021917,2]
[327077209,1715787050258,-500.0,0.00021917,2]
[327077210,1715787050267,-500.0,0.00021917,2]
[327077211,1715787050276,-472.66582425,0.00021917,2]
[327077212,1715787050286,-507.48132915,0.00021917,2]
[327077213,1715787050295,-500.0,0.00021917,2]
[327077214,1715787050304,-500.0,0.00021917,2]
[327077215,1715787050313,-503.14945654,0.00021917,2]
[327077216,1715787050323,-841.86,0.00021917,2]
[327077217,1715787050333,-731.78,0.00021917,2]
[327077218,1715787050342,-500.0,0.00021917,2]
[327077219,1715787050352,-500.0,0.00021917,2]
[327077220,1715787050361,-500.0,0.00021917,2]
[327077221,1715787050370,-500.0,0.00021917,2]
[327077222,1715787050380,-669.03,0.00021917,2]
[327077223,1715787050390,-500.0,0.00021917,2]
[327077224,1715787050400,-500.0,0.00021917,2]
[327077225,1715787050410,-500.0,0.00021917,2]
[327077226,1715787050419,-500.0,0.00021917,2]
[327077227,1715787050428,-498.85453557,0.00021917,2]
[327077228,1715787050438,-500.0,0.00021917,2]
[327077229,1715787050447,-500.0,0.00021917,2]
[327077230,1715787050458,-500.0,0.00021917,2]
[327077231,1715787050467,-300.81162849,0.00021917,2]
[327077232,1715787050477,-500.0,0.00021917,2]
[327077233,1715787050488,-500.0,0.00021917,2]
[327077234,1715787050497,-1211.79,0.00021917,2]
[327077235,1715787050507,-500.0,0.00021917,2]
[327077236,1715787050516,-594.63,0.00021917,2]
[327077237,1715787050526,-500.0,0.00021917,2]
[327077238,1715787050536,-500.0,0.00021917,2]
[327077239,1715787050546,-500.0,0.00021917,2]
[327077240,1715787050555,-500.0,0.00021917,2]
[327077241,1715787050564,-500.0,0.00021917,2]
[327077242,1715787050574,-1078.56,0.00021917,2]
[327077243,1715787050583,-739.28,0.00021917,2]
[327077244,1715787050592,-500.0,0.00021917,2]
[327077245,1715787050602,-502.63731462,0.00021917,2]
[327077246,1715787050611,-500.0,0.00021917,2]
[327077247,1715787050621,-727.91,0.00021917,2]
[327077248,1715787050630,-500.0,0.00021917,2]
[327077249,1715787050639,-500.0,0.00021917,2]
[327077250,1715787050649,-500.0,0.00021917,2]
[327077251,1715787050658,-500.0,0.00021917,2]
[327077252,1715787050667,-500.0,0.00021917,2]
[327077253,1715787050676,-500.0,0.00021917,2]
[327077254,1715787050686,-2951.66,0.00021917,2]
[327077255,1715787050695,-500.0,0.00021917,2]
[327077256,1715787050705,-1322.63,0.00021917,2]
[327077257,1715787050714,-500.0,0.00021917,2]
[327077258,1715787050723,-500.0,0.00021917,2]
[327077259,1715787050734,-275.88904079,0.00021917,2]
[327077260,1715787050744,-224.06475807,0.00021917,2]
[327077261,1715787050753,-500.0,0.00021917,2]
[327077262,1715787050762,-500.0,0.00021917,2]
[327077263,1715787050772,-185.19957551,0.00021917,2]
[327077264,1715787050782,-720.17,0.00021917,2]
[327077265,1715787050791,-318.98464537,0.00021917,2]
[327077266,1715787050802,-500.0,0.00021917,2]
[327077267,1715787050811,-500.0,0.00021917,2]
[327077268,1715787050820,-822.65,0.00021917,2]
[327077269,1715787050832,-2797.94,0.00021917,2]
[327077270,1715787050843,-500.0,0.00021917,2]
[327077271,1715787050853,-3753.57,0.00021917,2]
[327077272,1715787050862,-500.0,0.00021917,2]
[327077273,1715787050872,-500.0,0.00021917,2]
[327077274,1715787050882,-500.0,0.00021917,2]
[327077275,1715787050892,-500.0,0.00021917,2]
[327077276,1715787050902,-882.98,0.00021917,2]
[327077277,1715787050913,-500.0,0.00021917,2]
[327077278,1715787050923,-500.0,0.00021917,2]
[327077279,1715787050933,-500.0,0.00021917,2]
[327077280,1715787050943,-1305.66,0.00021917,2]
[327077281,1715787050953,-500.0,0.00021917,2]
[327077282,1715787050963,-501.2894254,0.00021917,2]
[327077283,1715787050972,-542.49,0.00021917,2]
[327077284,1715787050981,-500.0,0.00021917,2]
[327077285,1715787050993,-718.29,0.00021917,2]
[327077286,1715787051002,-822.55,0.00021917,2]
[327077287,1715787051012,-805.96,0.00021917,2]
[327077288,1715787051021,-500.0,0.00021917,2]
[327077289,1715787051030,-500.0,0.00021917,2]
[327077290,1715787051039,-500.0,0.00021917,2]
[327077291,1715787051048,-500.0,0.00021917,2]
[327077292,1715787051057,-751.4,0.00021917,2]
[327077293,1715787051071,-598.75,0.00021917,2]
[327077294,1715787051081,-500.0,0.00021917,2]
[327077295,1715787051090,-2421.69,0.00021917,2]
[327077296,1715787051100,-500.0,0.00021917,2]
[327077297,1715787051112,-500.0,0.00021917,2]
[327077298,1715787051122,-2046.77,0.00021917,2]
[327077299,1715787051132,-2046.77,0.00021917,2]
[327077300,1715787051142,-2046.77,0.00021917,2]
[327077301,1715787051154,-2046.77,0.00021917,2]
[327077302,1715787051165,-2046.77,0.00021917,2]
[327077303,1715787051174,-2046.77,0.00021917,2]
[327077304,1715787051183,-500.0,0.00021917,2]
[327077305,1715787051194,-2046.77,0.00021917,2]
[327077306,1715787051203,-2046.77,0.00021917,2]
[327077307,1715787051214,-2046.77,0.00021917,2]
[327077308,1715787051224,-500.0,0.00021917,2]
[327077309,1715787051237,-2046.77,0.00021917,2]
[327077310,1715787051246,-2046.77,0.00021917,2]
[327077311,1715787051255,-2046.77,0.00021917,2]
[327077312,1715787051264,-2046.77,0.00021917,2]
[327077313,1715787051274,-2046.77,0.00021917,2]
[327077314,1715787051282,-2046.77,0.00021917,2]
[327077315,1715787051292,-2046.77,0.00021917,2]
[327077316,1715787051301,-2046.77,0.00021917,2]
[327077317,1715787051310,-500.0,0.00021917,2]
[327077318,1715787051319,-2046.77,0.00021917,2]
[327077319,1715787051329,-2046.77,0.00021917,2]
[327077320,1715787051338,-2046.77,0.00021917,2]
[327077321,1715787051347,-887.55,0.00021917,2]
[327077322,1715787051356,-2046.77,0.00021917,2]
[327077323,1715787051367,-2046.77,0.00021917,2]
[327077324,1715787051377,-2046.77,0.00021917,2]
[327077325,1715787051386,-2046.87934724,0.00021917,2]
[327077326,1715787051396,-826.28,0.00021917,2]
[327077327,1715787051405,-500.0,0.00021917,2]
[327077328,1715787051415,-673.58,0.00021917,2]
[327077329,1715787051425,-505.29430698,0.00021917,2]
[327077330,1715787051434,-500.0,0.00021917,2]
[327077331,1715787051444,-249.9257373,0.00021917,2]
[327077332,1715787051453,-1422.34,0.00021917,2]
[327077333,1715787051462,-787.87,0.00021917,2]
[327077334,1715787051471,-521.4380852,0.00021917,2]
[327077335,1715787051481,-500.0,0.00021917,2]
[327077336,1715787051616,-500.0,0.00021917,2]
[327077337,1715787051626,-500.0,0.00021917,2]
[327077338,1715787051635,-392.273216,0.00021917,2]
[327077339,1715787051644,-392.273216,0.00021917,2]
[327077340,1715787051654,-392.273216,0.00021917,2]
[327077341,1715787051663,-392.273216,0.00021917,2]
[327077342,1715787051673,-392.273216,0.00021917,2]
[327077343,1715787051682,-392.273216,0.00021917,2]
[327077344,1715787051692,-392.273216,0.00021917,2]
[327077345,1715787051701,-392.273216,0.00021917,2]
[327077346,1715787051711,-151.0,0.00021917,2]
[327077347,1715787051720,-500.0,0.00021917,2]
[327077348,1715787051730,-151.446942,0.00021917,2]
[327077349,1715787051741,-500.0,0.00021917,2]
[327077350,1715787051750,-392.273216,0.00021917,2]
[327077351,1715787051759,-530.57,0.00021917,2]
[327077352,1715787051769,-392.273216,0.00021917,2]
[327077353,1715787051779,-500.0,0.00021917,2]
[327077354,1715787051789,-392.273216,0.00021917,2]
[327077355,1715787051798,-392.273216,0.00021917,2]
[327077356,1715787051807,-392.273216,0.00021917,2]
[327077357,1715787051817,-392.273216,0.00021917,2]
[327077358,1715787051827,-392.273216,0.00021917,2]
[327077359,1715787051839,-392.273215,0.00021917,2]
[327077360,1715787051849,-874.21,0.00021917,2]
[327077361,1715787051859,-500.0,0.00021917,2]
[327077362,1715787051869,-574.15,0.00021917,2]
[327077363,1715787051879,-500.0,0.00021917,2]
[327077364,1715787051889,-500.0,0.00021917,2]
[327077365,1715787051899,-500.0,0.00021917,2]
[327077366,1715787051909,-1525.38,0.00021917,2]
[327077367,1715787051919,-503.24660521,0.00021917,2]
[327077368,1715787051928,-1015.72,0.00021917,2]
[327077369,1715787051938,-346.45029627,0.00021917,2]
[327077370,1715787051948,-500.0,0.00021917,2]
[327077371,1715787051957,-500.0,0.00021917,2]
[327077372,1715787051966,-670.12,0.00021917,2]
[327077373,1715787051975,-491.7666616,0.00021917,2]
[327077374,1715787051986,-1073.22,0.00021917,2]
[327077375,1715787051996,-1648.44,0.00021917,2]
[327077376,1715787052006,-500.0,0.00021917,2]
[327077377,1715787052016,-500.0,0.00021917,2]
[327077378,1715787052026,-500.0,0.00021917,2]
[327077379,1715787052036,-530.61,0.00021917,2]
[327077380,1715787052046,-979.96,0.00021917,2]
[327077381,1715787052056,-812.92,0.00021917,2]
[327077382,1715787052067,-500.0,0.00021917,2]
[327077383,1715787052078,-500.0,0.00021917,2]
[327077384,1715787052087,-1225.05,0.00021917,2]
[327077385,1715787052097,-1102.11,0.00021917,2]
[327077386,1715787052107,-1102.11,0.00021917,2]
[327077387,1715787052117,-1102.11,0.00021917,2]
[327077388,1715787052127,-1102.11,0.00021917,2]
[327077389,1715787052136,-1102.11,0.00021917,2]
[327077390,1715787052148,-1102.11,0.00021917,2]
[327077391,1715787052158,-1102.11,0.00021917,2]
[327077392,1715787052168,-1102.11,0.00021917,2]
[327077393,1715787052177,-1102.11,0.00021917,2]
[327077395,1715787052186,-500.0,0.00021917,2]
[327077396,1715787052195,-1102.11,0.00021917,2]
[327077397,1715787052205,-1102.11,0.00021917,2]
[327077398,1715787052214,-1102.11,0.00021917,2]
[327077399,1715787052223,-500.0,0.00021917,2]
[327077400,1715787052234,-1102.11,0.00021917,2]
[327077401,1715787052244,-1102.11,0.00021917,2]
[327077402,1715787052253,-1102.11,0.00021917,2]
[327077403,1715787052263,-1102.11,0.00021917,2]
[327077404,1715787052273,-1102.11,0.00021917,2]
[327077405,1715787052282,-1102.11,0.00021917,2]
[327077406,1715787052292,-1102.11,0.00021917,2]
[327077407,1715787052301,-1102.11,0.00021917,2]
[327077408,1715787052310,-1102.11,0.00021917,2]
[327077409,1715787052320,-500.0,0.00021917,2]
[327077410,1715787052329,-1102.11,0.00021917,2]
[327077411,1715787052339,-1102.11,0.00021917,2]
[327077412,1715787052348,-1102.34113923,0.00021917,2]
[327077413,1715787052357,-688.53,0.00021917,2]
[327077414,1715787052367,-500.0,0.00021917,2]
[327077415,1715787052376,-500.0,0.00021917,2]
[327077416,1715787052387,-500.0,0.00021917,2]
[327077417,1715787052396,-500.0,0.00021917,2]
[327077418,1715787052406,-255.488296,0.00021917,2]
[327077419,1715787052415,-255.488296,0.00021917,2]
[327077420,1715787052424,-255.488296,0.00021917,2]
[327077421,1715787052434,-255.488296,0.00021917,2]
[327077422,1715787052443,-255.488296,0.00021917,2]
[327077423,1715787052453,-255.488296,0.00021917,2]
[327077424,1715787052462,-255.488296,0.00021917,2]
[327077425,1715787052472,-255.488296,0.00021917,2]
[327077426,1715787052482,-1445.89,0.00021917,2]
[327077427,1715787052491,-796.64,0.00021917,2]
[327077428,1715787052501,-500.0,0.00021917,2]
[327077429,1715787052510,-255.488296,0.00021917,2]
[327077430,1715787052519,-500.0,0.00021917,2]
[327077431,1715787052528,-255.488296,0.00021917,2]
[327077432,1715787052538,-255.488296,0.00021917,2]
[327077433,1715787052547,-255.488296,0.00021917,2]
[327077434,1715787052556,-255.488296,0.00021917,2]
[327077435,1715787052565,-255.488296,0.00021917,2]
[327077436,1715787052575,-500.0,0.00021917,2]
[327077437,1715787052584,-255.488296,0.00021917,2]
[327077438,1715787052593,-255.488296,0.00021917,2]
[327077439,1715787052603,-986.81,0.00021917,2]
[327077440,1715787052612,-871.5,0.00021917,2]
[327077441,1715787052622,-3279.7,0.00021917,2]
[327077442,1715787052632,-500.0,0.00021917,2]
[327077443,1715787052641,-500.0,0.00021917,2]
[327077444,1715787052651,-1120.41,0.00021917,2]
[327077445,1715787052660,-1009.08,0.00021917,2]
[327077446,1715787052669,-757.52,0.00021917,2]
[327077447,1715787052680,-500.0,0.00021917,2]
[327077448,1715787052689,-647.96,0.00021917,2]
[327077449,1715787052700,-1599.01,0.00021917,2]
[327077450,1715787052710,-500.0,0.00021917,2]
[327077451,1715787052720,-151.0,0.00021917,2]
[327077452,1715787052731,-151.0,0.00021917,2]
[327077453,1715787052743,-151.0,0.00021917,2]
[327077454,1715787052752,-905.18,0.00021917,2]
[327077455,1715787052761,-151.0,0.00021917,2]
[327077456,1715787052770,-520.67274492,0.00021917,2]
[327077457,1715787052780,-151.0,0.00021917,2]
[327077458,1715787052790,-151.0,0.00021917,2]
[327077459,1715787052800,-151.0,0.00021917,2]
[327077460,1715787052810,-151.0,0.00021917,2]
[327077461,1715787052820,-1279.52,0.00021917,2]
[327077462,1715787052831,-500.0,0.00021917,2]
[327077463,1715787052841,-151.0,0.00021917,2]
[327077464,1715787052850,-2948.91,0.00021917,2]
[327077465,1715787052859,-573.913955,0.00021917,2]
[327077466,1715787052868,-192.0141,0.00021917,2]
[327077467,1715787052878,-573.913955,0.00021917,2]
[327077468,1715787052887,-500.0,0.00021917,2]
[327077469,1715787052896,-573.913955,0.00021917,2]
[327077470,1715787052906,-573.913955,0.00021917,2]
[327077471,1715787052917,-573.913955,0.00021917,2]
[327077472,1715787052927,-573.913955,0.00021917,2]
[327077473,1715787052935,-573.913955,0.00021917,2]
[327077474,1715787052944,-573.913955,0.00021917,2]
[327077475,1715787052954,-573.913955,0.00021917,2]
[327077476,1715787052966,-573.913955,0.00021917,2]
[327077477,1715787052975,-573.913955,0.00021917,2]
[327077478,1715787052987,-573.913955,0.00021917,2]
[327077479,1715787052997,-573.913955,0.00021917,2]
[327077480,1715787053013,-573.913955,0.00021917,2]
[327077481,1715787053022,-573.913955,0.00021917,2]
[327077482,1715787053032,-500.0,0.00021917,2]
[327077483,1715787053042,-573.913955,0.00021917,2]
[327077484,1715787053051,-500.0,0.00021917,2]
[327077485,1715787053062,-1507.37,0.00021917,2]
[327077486,1715787053075,-500.0,0.00021917,2]
[327077487,1715787053084,-1100.24,0.00021917,2]
[327077488,1715787053093,-324.602906,0.00021917,2]
[327077489,1715787053102,-324.602906,0.00021917,2]
[327077490,1715787053113,-324.602906,0.00021917,2]
[327077491,1715787053122,-324.602906,0.00021917,2]
[327077492,1715787053132,-324.602906,0.00021917,2]
[327077493,1715787053141,-324.602906,0.00021917,2]
[327077494,1715787053152,-500.0,0.00021917,2]
[327077495,1715787053163,-324.602906,0.00021917,2]
[327077496,1715787053172,-324.602906,0.00021917,2]
[327077497,1715787053181,-500.0,0.00021917,2]
[327077498,1715787053190,-324.602906,0.00021917,2]
[327077499,1715787053199,-324.602906,0.00021917,2]
[327077500,1715787053208,-324.602906,0.00021917,2]
[327077501,1715787053218,-324.602906,0.00021917,2]
[327077502,1715787053227,-324.602906,0.00021917,2]
[327077503,1715787053241,-324.602906,0.00021917,2]
[327077504,1715787053251,-324.602906,0.00021917,2]
[327077505,1715787053260,-324.602906,0.00021917,2]
[327077506,1715787053270,-500.0,0.00021917,2]
[327077507,1715787053279,-5734.13,0.00021917,2]
[327077508,1715787053290,-504.90844743,0.00021917,2]
[327077509,1715787053300,-500.0,0.00021917,2]
[327077510,1715787053310,-500.0,0.00021917,2]
[327077511,1715787053319,-500.0,0.00021917,2]
[327077512,1715787053329,-500.0,0.00021917,2]
[327077513,1715787053339,-821.94,0.00021917,2]
[327077514,1715787053348,-1000.0,0.00021917,2]
[327077515,1715787053358,-778.46,0.00021917,2]
[327077516,1715787053367,-500.0,0.00021917,2]
[327077517,1715787053377,-500.0,0.00021917,2]
[327077518,1715787053387,-652.13,0.00021917,2]
[327077519,1715787053397,-500.0,0.00021917,2]
[327077520,1715787053407,-500.0,0.00021917,2]
[327077521,1715787053417,-814.38,0.00021917,2]
[327077522,1715787053427,-500.0,0.00021917,2]
[327077523,1715787053436,-616.51,0.00021917,2]
[327077524,1715787053445,-500.0,0.00021917,2]
[327077525,1715787053455,-500.0,0.00021917,2]
[327077526,1715787053464,-500.0,0.00021917,2]
[327077527,1715787053473,-244.73265,0.00021917,2]
[327077528,1715787053483,-244.73265,0.00021917,2]
[327077529,1715787053495,-244.73265,0.00021917,2]
[327077530,1715787053503,-244.73265,0.00021917,2]
[327077531,1715787053512,-244.73265,0.00021917,2]
[327077532,1715787053522,-500.0,0.00021917,2]
[327077533,1715787053531,-244.73265,0.00021917,2]
[327077534,1715787053541,-500.0,0.00021917,2]
[327077535,1715787053551,-244.73265,0.00021917,2]
[327077536,1715787053561,-244.73265,0.00021917,2]
[327077537,1715787053570,-500.0,0.00021917,2]
[327077538,1715787053580,-840.51,0.00021917,2]
[327077539,1715787053589,-643.19,0.00021917,2]
[327077540,1715787053598,-244.73265,0.00021917,2]
[327077541,1715787053608,-500.0,0.00021917,2]
[327077542,1715787053617,-244.73265,0.00021917,2]
[327077543,1715787053627,-244.73265,0.00021917,2]
[327077544,1715787053636,-1000.0,0.00021917,2]
[327077545,1715787053646,-244.73265,0.00021917,2]
[327077546,1715787053656,-244.73265,0.00021917,2]
[327077547,1715787053665,-244.73265,0.00021917,2]
[327077548,1715787053675,-151.0,0.00021917,2]
[327077549,1715787053684,-244.73265,0.00021917,2]
[327077550,1715787053693,-225.388296,0.00021917,2]
[327077551,1715787053703,-244.73265,0.00021917,2]
[327077552,1715787053712,-500.0,0.00021917,2]
[327077553,1715787053721,-500.0,0.00021917,2]
[327077554,1715787053730,-500.0,0.00021917,2]
[327077555,1715787053744,-500.0,0.00021917,2]
[327077556,1715787053753,-3012.25,0.00021917,2]
[327077557,1715787053762,-500.0,0.00021917,2]